Workbook

Sheet Home

Sheet Dashboard

Sheet Sheet1
A3: =CUBEMEMBER("ThisWorkbookDataModel","[Measures].[Count of member_casual]") -> Count of member_casual | B3: Column Labels
A4: Row Labels | B4: =CUBEMEMBER("ThisWorkbookDataModel","[2020-21-prepared].[member_casual].&[casual]") -> casual | C4: =CUBEMEMBER("ThisWorkbookDataModel","[2020-21-prepared].[member_casual].&[member]") -> member | D4: =CUBEMEMBER("ThisWorkbookDataModel","[2020-21-prepared].[member_casual].[All]","Grand Total") -> Grand Total | E4: casual % | F4: member %
A5: =CUBEMEMBER("ThisWorkbookDataModel","[2020-21-prepared].[duration_group].&[a. 1d]") -> a. 1d | B5: =CUBEVALUE("ThisWorkbookDataModel",$A$3,$A5,B$4,Slicer_Q_Y) -> 2235633 | C5: =CUBEVALUE("ThisWorkbookDataModel",$A$3,$A5,C$4,Slicer_Q_Y) -> 3264006 | D5: =CUBEVALUE("ThisWorkbookDataModel",$A$3,$A5,D$4,Slicer_Q_Y) -> 5499639 | E5: =B5/D5 -> 0.4065054088 | F5: =C5/D5 -> 0.5934945912 | G5: 1
A6: =CUBEMEMBER("ThisWorkbookDataModel","[2020-21-prepared].[duration_group].&[b. 1d-1w]") -> b. 1d-1w | B6: =CUBEVALUE("ThisWorkbookDataModel",$A$3,$A6,B$4,Slicer_Q_Y) -> 3514 | C6: =CUBEVALUE("ThisWorkbookDataModel",$A$3,$A6,C$4,Slicer_Q_Y) -> 501 | D6: =CUBEVALUE("ThisWorkbookDataModel",$A$3,$A6,D$4,Slicer_Q_Y) -> 4015 | E6: =B6/D6 -> 0.8752179328 | F6: =C6/D6 -> 0.1247820672
A7: =CUBEMEMBER("ThisWorkbookDataModel","[2020-21-prepared].[duration_group].&[c. 1-4w]") -> c. 1-4w | B7: =CUBEVALUE("ThisWorkbookDataModel",$A$3,$A7,B$4,Slicer_Q_Y) -> 450 | C7: =CUBEVALUE("ThisWorkbookDataModel",$A$3,$A7,C$4,Slicer_Q_Y) -> 19 | D7: =CUBEVALUE("ThisWorkbookDataModel",$A$3,$A7,D$4,Slicer_Q_Y) -> 469 | E7: 0.9594882729 | F7: =C7/D7 -> 0.04051172708
A8: =CUBEMEMBER("ThisWorkbookDataModel","[2020-21-prepared].[duration_group].[All]","Grand Total") -> Grand Total | B8: =CUBEVALUE("ThisWorkbookDataModel",$A$3,$A8,B$4,Slicer_Q_Y) -> 2239641 | C8: =CUBEVALUE("ThisWorkbookDataModel",$A$3,$A8,C$4,Slicer_Q_Y) -> 3264532 | D8: =CUBEVALUE("ThisWorkbookDataModel",$A$3,$A8,D$4,Slicer_Q_Y) -> 5504173
B9: =B5/B$8 -> 0.9982104275 | C9: =C5/C$8 -> 0.9998388743
B10: =B6/B$8 -> 0.001569001461 | C10: 0.0001534676333
B11: 0.000200925059 | C11: 5.820129807e-06

Sheet Sheet2
A1: Count of member_casual | B1: Column Labels
A2: Row Labels | B2: casual | C2: member | D2: Grand Total
A3: Jan-20 | B3: 7770 | C3: 136089 | D3: 143859
A4: Feb-20 | B4: 12865 | C4: 126710 | D4: 139575
A5: Mar-20 | B5: 27698 | C5: 115514 | D5: 143212
A6: Apr-20 | B6: 23637 | C6: 61154 | D6: 84791
A7: May-20 | B7: 86809 | C7: 113112 | D7: 199921
A8: Jun-20 | B8: 154975 | C8: 188479 | D8: 343454
A9: Jul-20 | B9: 269593 | C9: 281019 | D9: 550612
A10: Aug-20 | B10: 287543 | C10: 331088 | D10: 618631
A11: Sep-20 | B11: 230023 | C11: 300637 | D11: 530660
A12: Oct-20 | B12: 144629 | C12: 242053 | D12: 386682
A13: Nov-20 | B13: 87698 | C13: 171080 | D13: 258778
A14: Dec-20 | B14: 30039 | C14: 100864 | D14: 130903
A15: Jan-21 | B15: 18027 | C15: 78694 | D15: 96721
A16: Feb-21 | B16: 10148 | C16: 39736 | D16: 49884
A17: Mar-21 | B17: 84061 | C17: 144290 | D17: 228351
A18: Apr-21 | B18: 136991 | C18: 200796 | D18: 337787
A19: May-21 | B19: 256796 | C19: 274889 | D19: 531685
A20: Jun-21 | B20: 370339 | C20: 358328 | D20: 728667
A21: Grand Total | B21: 2239641 | C21: 3264532 | D21: 5504173

Sheet Sheet3
A3: Row Labels | B3: Count of member_casual | C3: Sum of duration
A4: casual | B4: 2239641 | C4: 67774.84251 | D4: =C4/B4 -> 0.03026147606
A5: member | B5: 3264532 | C5: 34791.97766 | D5: =C5/B5 -> 0.0106575698
A6: Grand Total | B6: 5504173 | C6: 102566.8202
